bitfinex-derivatives/quotes_SOLF0:USTF0_20250509
["timestamp","ask_amount","ask_price","bid_price","bid_amount"]
[1746809580478,5.9095,169.23,169.19,5.9105]
[1746809580677,5.9095,169.23,169.14,1.8453]
[1746809580678,40.43615323,169.3,169.14,1.8453]
[1746809581170,215.5166,169.33,169.15,1.9792]
[1746809581375,197.8766,169.33,169.15,1.9792]
[1746809581573,5.9082,169.27,169.23,5.909]
[1746809581771,197.8766,169.33,169.17,22.79615323]
[1746809582072,1.8766,169.33,169.17,22.79615323]
[1746809582372,5.9067,169.31,169.26,5.908]
[1746809582576,5.9067,169.31,169.17,22.79615323]
[1746809582781,17.64,169.3,169.13,1.8759]
[1746809582979,22.80996371,169.29,169.13,1.8759]
[1746809583178,22.80996371,169.29,169.14,3.9629]
[1746809583482,22.80996371,169.29,169.21,5.9098]
[1746809583683,22.80996371,169.29,169.14,3.9629]
[1746809583884,5.9087,169.25,169.21,5.9098]
[1746809584484,5.9092,169.24,169.2,5.9104]
[1746809584683,5.9092,169.24,169.14,3.9629]
[1746809585185,5.9092,169.24,169.2,5.9102]
[1746809586086,5.9094,169.23,169.2,5.9102]
[1746809586286,14.0339099,169.31,169.14,3.9629]
[1746809586688,31.6739099,169.31,169.14,3.9629]
[1746809586887,14.0339099,169.27,169.16,5.9115]
[1746809587086,1.9222,169.26,169.16,5.9115]
[1746809587285,5.9107,169.2,169.16,5.9115]
[1746809587787,1.9222,169.26,169.14,5.9124]
[1746809587992,14.0339099,169.23,169.07,3.9441]
[1746809588184,14.0339099,169.23,169.08,1.8389]
[1746809588582,1.9103,169.25,169.08,1.8389]
[1746809588781,5.9099,169.22,169.08,1.8389]
[1746809589183,1.9222,169.26,169.11,14.0339099]
[1746809589584,1.02849037,169.38,169.15,14.0339099]
[1746809589788,1.02849037,169.38,169.19,14.0339099]
[1746809589789,4.96764268,169.35,169.19,14.0339099]
[1746809589978,3.05734268,169.35,169.19,14.0339099]
[1746809590184,2.0044,169.35,169.16,5.7614]
[1746809590384,5.9058,169.34,169.21,14.0339099]
[1746809590586,2.0044,169.35,169.21,14.0339099]
[1746809590786,2.0044,169.35,169.2,14.0339099]
[1746809591582,2.0044,169.35,169.16,5.7614]
[1746809591787,14.0339099,169.33,169.16,5.7614]
[1746809591985,1.884,169.32,169.16,5.7614]
[1746809592581,5.9083,169.27,169.23,5.9091]
[1746809592786,1.884,169.32,169.16,5.7614]
[1746809593288,14.0339099,169.3,169.18,5.911]
[1746809593485,14.0339099,169.3,169.16,5.7614]
[1746809593685,1.0531515,169.29,169.16,5.7614]
[1746809593886,1.884,169.32,169.23,5.9091]
[1746809594282,1.884,169.32,169.16,5.7614]
[1746809594491,5.9083,169.27,169.21,5.91]
[1746809595092,5.9084,169.26,169.2,5.9104]
[1746809595389,1.884,169.32,169.16,6.7614]
[1746809595991,15.9179099,169.32,169.16,6.7614]
[1746809596196,15.9179099,169.32,169.16,12.673]
[1746809596392,1.05315827,169.31,169.16,6.7614]
[1746809596992,14.0339099,169.28,169.16,6.7614]
[1746809597294,5.9103,169.21,169.16,12.6731]
[1746809597483,5.9103,169.21,169.16,6.7614]
[1746809597687,1.9758,169.27,169.16,6.7614]
[1746809598591,1.9758,169.27,169.16,1.0]
[1746809599288,1.9758,169.27,169.16,6.9115]
[1746809599493,1.9758,169.27,169.16,1.0]
[1746809600897,5.9107,169.2,169.16,6.9115]
[1746809601096,1.9758,169.27,169.16,1.0]
[1746809601596,1.9758,169.27,169.18,5.9109]
[1746809601795,1.9758,169.27,169.16,1.0]
[1746809602097,5.9096,169.23,169.17,3.9737]
[1746809602799,5.9096,169.23,169.2,5.9103]
[1746809603799,1.884,169.32,169.17,3.9737]
[1746809603993,1.884,169.32,169.18,1.9525]
[1746809604792,1.884,169.32,169.17,3.9737]
[1746809605293,5.9096,169.23,169.17,3.9737]
[1746809605497,1.05311566,169.31,169.17,3.9737]
[1746809605699,1.9352,169.34,169.17,3.9737]
[1746809606200,5.9065,169.32,169.17,3.9737]
[1746809606499,1.9352,169.34,169.18,11.8222]
[1746809606699,5.9067,169.31,169.27,5.9076]
[1746809607096,5.9067,169.31,169.18,11.8222]
[1746809607401,1.9352,169.34,169.18,11.8222]
[1746809607805,1.9352,169.34,169.28,5.9074]
[1746809608204,1.9352,169.34,169.18,11.8222]
[1746809608407,5.9079,169.28,169.18,11.8222]
[1746809608705,1.9352,169.34,169.18,11.8222]
[1746809609000,5.9074,169.29,169.18,73.8222]
[1746809609505,1.9352,169.34,169.18,73.8222]
[1746809609901,5.9069,169.31,169.28,5.9073]
[1746809610208,5.9069,169.31,169.18,73.8222]
[1746809610209,1.9352,169.34,169.18,62.0]
[1746809611298,1.9352,169.34,169.19,11.8216]
[1746809611498,1.9352,169.34,169.17,18.0076099]
[1746809612405,5.9076,169.28,169.17,18.0076099]
[1746809612604,14.0339099,169.33,169.17,3.9737]
[1746809612806,1.9352,169.34,169.17,3.9737]
[1746809613001,1.9352,169.34,169.25,5.9084]
[1746809613201,1.9352,169.34,169.17,3.9737]
[1746809613401,31.6739099,169.32,169.17,3.9737]
[1746809613603,5.9089,169.25,169.22,5.9097]
[1746809614305,5.9091,169.24,169.21,5.9099]
[1746809614706,14.0339099,169.32,169.17,3.9737]
[1746809614906,5.9073,169.29,169.17,3.9737]
[1746809615107,1.9352,169.34,169.17,3.9737]
[1746809615309,5.9072,169.3,169.26,5.908]
[1746809615510,1.9352,169.34,169.18,11.8221]
[1746809615710,1.9352,169.34,169.17,3.9737]
[1746809616507,7.841,169.34,169.17,3.9737]
[1746809616706,1.9352,169.34,169.2,11.8206]
[1746809616907,1.9352,169.34,169.21,1.9659]
[1746809617112,5.9061,169.33,169.3,5.9068]
[1746809617410,1.9352,169.34,169.21,1.9659]
[1746809617615,5.9061,169.33,169.3,5.9069]
[1746809617807,1.9352,169.34,169.21,1.9659]
[1746809618211,7.841,169.34,169.21,1.9659]
[1746809618610,5.9053,169.35,169.32,5.9061]
[1746809618913,1.8809,169.39,169.22,62.0]
[1746809620119,1.8809,169.39,169.24,11.818]
[1746809620411,1.8809,169.39,169.34,5.9053]
[1746809620608,1.8809,169.39,169.25,3.81]
[1746809622414,5.9065,169.32,169.25,3.81]
[1746809622613,1.8809,169.39,169.25,3.81]
[1746809622804,17.64,169.36,169.25,3.81]
[1746809623513,5.9076,169.29,169.26,5.9082]
[1746809624215,14.0339099,169.37,169.25,3.81]
[1746809624413,1.8809,169.39,169.25,3.81]
[1746809625316,5.9054,169.35,169.25,3.81]
[1746809625517,1.8809,169.39,169.25,3.81]
[1746809625816,5.9055,169.34,169.25,3.81]
[1746809626115,1.8809,169.39,169.25,3.81]
[1746809627116,5.9068,169.31,169.28,5.9074]
[1746809627315,14.0339099,169.38,169.25,3.81]
[1746809627617,14.0339099,169.34,169.19,1.9893]
[1746809627817,5.9078,169.28,169.25,5.9087]
[1746809628018,14.0339099,169.34,169.19,3.8149]
[1746809628811,5.9074,169.29,169.26,5.9083]
[1746809629018,14.0339099,169.34,169.19,3.8149]
[1746809629219,14.0339099,169.34,169.25,5.9086]
[1746809629618,14.0339099,169.34,169.19,3.8149]
[1746809629819,5.9075,169.29,169.26,5.9083]
[1746809630016,22.79473132,169.35,169.26,5.9083]
[1746809630217,22.80397347,169.32,169.19,1.9893]
[1746809630515,5.9091,169.24,169.21,5.9099]
[1746809631216,1.8802,169.31,169.19,1.9893]
[1746809632217,5.9082,169.27,169.23,5.9092]
[1746809632417,1.8802,169.31,169.23,5.9092]
[1746809632619,1.8802,169.31,169.18,1.9458]
[1746809632814,5.9086,169.26,169.18,1.9458]
[1746809633320,1.8802,169.31,169.18,1.9458]
[1746809633523,40.4447651,169.29,169.18,1.9458]
[1746809634021,40.4447651,169.29,169.16,1.0]
[1746809634523,1.05335168,169.28,169.16,1.0]
[1746809634722,5.9114,169.18,169.16,1.0]
[1746809635323,5.9109,169.19,169.16,6.9118]
[1746809635621,2.0103,169.23,169.16,1.0]
[1746809636525,7.92,169.23,169.19,5.9106]
[1746809636724,7.92,169.23,169.16,1.0]
[1746809637029,5.9097,169.22,169.16,1.0]
[1746809637632,7.92,169.23,169.16,1.0]
[1746809637837,2.0103,169.23,169.16,1.0]
[1746809638029,2.0103,169.23,169.19,5.9105]
[1746809639024,5.9099,169.22,169.19,5.9105]
[1746809639234,2.0103,169.23,169.16,1.0]
[1746809639834,40.5447651,169.29,169.17,2.0025]
[1746809640032,5.9095,169.23,169.17,2.0025]
[1746809640233,1.9651,169.28,169.17,2.0025]
[1746809640435,1.9651,169.28,169.2,5.9103]
[1746809640733,1.9651,169.28,169.17,4.0136]
[1746809641234,1.8678,169.34,169.17,4.0136]
[1746809641438,1.9651,169.33,169.26,5.9081]
[1746809641630,5.9078,169.28,169.18,24.6291651]
[1746809641828,1.9651,169.33,169.18,24.6291651]
[1746809642029,1.9651,169.33,169.25,5.9084]
[1746809642233,5.9074,169.29,169.18,24.6291651]
[1746809642531,1.9651,169.33,169.18,24.6291651]
[1746809642834,1.9124,169.39,169.22,22.8047651]
[1746809643030,1.892,169.38,169.22,22.8047651]
[1746809643234,7.7963,169.38,169.26,22.8047651]
[1746809643435,171.44872857,169.45,169.27,5.9712]
[1746809643634,1.892,169.44,169.27,5.9712]
[1746809644434,5.9048,169.36,169.27,5.9712]
[1746809644640,24.6967651,169.44,169.27,5.9712]
[1746809644932,5.9055,169.34,169.27,5.9712]
[1746809645136,1.05247156,169.43,169.27,5.9712]
[1746809645335,24.6967651,169.44,169.27,5.9712]
[1746809645736,1.05249207,169.43,169.3,5.9067]
[1746809646132,22.8047651,169.4,169.27,3.9671]
[1746809646331,22.8047651,169.36,169.21,1.8645]
[1746809646530,2.0166,169.39,169.21,5.7759]
[1746809647538,5.9053,169.35,169.31,5.9065]
[1746809648333,5.9057,169.34,169.31,5.9065]
[1746809648635,2.0166,169.39,169.31,5.9065]
[1746809648939,5.9053,169.35,169.31,5.9065]
[1746809649431,5.9053,169.35,169.32,5.9062]
[1746809649740,5.9049,169.36,169.32,5.9062]
[1746809650237,5.9049,169.36,169.22,62.0]
[1746809650432,24.6967651,169.44,169.25,22.8047651]
[1746809650837,1.892,169.44,169.37,5.9045]
[1746809651840,17.74,169.47,169.3,5.7726]
[1746809652044,5.9026,169.43,169.3,5.7726]
[1746809652245,1.9336,169.49,169.3,5.7726]
[1746809653947,1.05216886,169.48,169.3,5.7726]
[1746809654147,40.5447651,169.45,169.3,5.7726]
[1746809654441,22.8047651,169.45,169.3,5.7726]
[1746809654645,1.05216886,169.44,169.3,5.7726]
[1746809654845,22.8047651,169.45,169.3,5.7726]
[1746809655144,5.904,169.39,169.35,5.905]
[1746809655346,1.05225678,169.44,169.35,5.905]
[1746809655547,1.05225678,169.44,169.3,5.7726]
[1746809656443,5.9045,169.37,169.34,5.9055]
[1746809656842,22.8047651,169.45,169.3,5.7726]
[1746809657037,5.9039,169.39,169.35,5.9048]
[1746809657243,22.8047651,169.45,169.35,5.9048]
[1746809657547,22.8047651,169.45,169.34,5.9054]
[1746809657750,1.05226732,169.44,169.3,5.7726]
[1746809657944,1.05226732,169.44,169.3,6.7726]
[1746809658850,5.904,169.39,169.3,6.7726]
[1746809659251,5.904,169.39,169.35,5.9049]
[1746809659451,22.8047651,169.45,169.3,6.7726]
[1746809659952,5.9038,169.4,169.36,5.9047]
[1746809660252,22.8047651,169.45,169.3,6.7726]
[1746809660452,1.02757928,169.5,169.3,6.7726]
[1746809660453,19.7039,169.51,169.3,29.5773651]
[1746809660752,1.05209184,169.48,169.34,22.8047651]
[1746809660954,5.9017,169.45,169.41,5.9029]
[1746809661245,1.05209184,169.48,169.34,22.8047651]
[1746809661451,5.9004,169.49,169.46,5.9013]
[1746809661642,1.8785,169.55,169.39,4.0122]
[1746809661847,1.8785,169.55,169.39,19.96689584]
[1746809662150,5.899,169.53,169.39,19.96689584]
[1746809662350,1.8785,169.55,169.43,13.98959584]
[1746809662648,15.98689584,169.62,169.43,13.98959584]
[1746809662848,2.92984493,169.61,169.43,13.98959584]
[1746809663049,1.05134493,169.6,169.44,1.18035882]
[1746809663249,5.8991,169.53,169.44,1.18035882]
[1746809663651,5.8991,169.53,169.49,5.9001]
[1746809663846,5.8994,169.52,169.44,1.18035882]
[1746809664253,5.8994,169.52,169.48,5.9004]
[1746809664459,22.72424056,169.58,169.44,1.18035882]
[1746809664752,1.05154607,169.57,169.44,1.18035882]
[1746809664949,1.05154607,169.57,169.44,7.08225882]
[1746809665150,1.05154607,169.57,169.44,1.18035882]
[1746809665348,5.9017,169.45,169.44,1.18035882]
[1746809666553,22.72424056,169.49,169.39,1.9651]
[1746809666554,5.903,169.42,169.39,1.9651]
[1746809666750,22.72424056,169.49,169.32,3.9049]
[1746809667049,22.72424056,169.49,169.33,1.18112561]
[1746809667352,5.9034,169.41,169.33,1.18112561]
[1746809667650,34.52334056,169.52,169.39,5.9035]
[1746809668149,52.26334056,169.52,169.33,1.18112561]
[1746809668356,22.72424056,169.48,169.38,5.9041]
[1746809668655,22.72424056,169.48,169.33,1.18112561]
[1746809668954,22.72424056,169.52,169.33,23.90536617]
[1746809669849,22.72424056,169.52,169.35,11.8104]
[1746809670158,2.0155,169.53,169.36,1.18091639]
[1746809670352,5.8995,169.52,169.48,5.9004]
[1746809670751,5.8995,169.52,169.37,34.53314056]
[1746809670752,1.8765,169.59,169.37,22.72424056]
[1746809670957,5.8983,169.55,169.51,5.8993]
[1746809671156,1.9256,169.58,169.39,1.9307]
[1746809671357,1.9256,169.58,169.49,5.9001]
[1746809671754,1.9256,169.58,169.4,16.79083754]
[1746809671952,5.8998,169.51,169.47,5.9008]
[1746809672156,1.9256,169.58,169.41,1.18056785]
[1746809672459,5.8989,169.53,169.5,5.8999]
[1746809672655,1.9256,169.58,169.41,1.18056785]
[1746809673163,1.05150571,169.57,169.41,1.18056785]
[1746809673659,22.72424056,169.56,169.47,5.9007]
[1746809673958,22.72424056,169.56,169.41,1.18056785]
[1746809674156,5.8989,169.53,169.5,5.8997]
[1746809674353,1.9256,169.58,169.41,1.18056785]
[1746809674757,5.8992,169.53,169.49,5.9001]
[1746809675059,5.8992,169.53,169.41,1.18056785]
[1746809675258,5.8993,169.52,169.41,1.18056785]
[1746809675558,1.9256,169.58,169.41,1.18056785]
[1746809675754,5.898,169.56,169.42,11.8051]
[1746809675960,5.898,169.56,169.43,63.18042849]
[1746809676155,1.9256,169.58,169.43,63.18042849]
[1746809676361,1.9256,169.58,169.54,5.8982]
[1746809676752,22.72424056,169.6,169.54,5.8983]
[1746809676955,5.8973,169.58,169.44,35.70869938]
[1746809677158,22.72424056,169.6,169.45,1.18028917]
[1746809677463,5.8972,169.58,169.55,5.8979]
[1746809677850,5.8972,169.58,169.54,5.8985]
[1746809678160,22.72424056,169.6,169.55,1.17959304]
[1746809678762,5.8974,169.58,169.55,1.17959304]
[1746809679168,5.8974,169.58,169.55,7.07779304]
[1746809679460,22.72424056,169.6,169.55,1.17959304]
[1746809680250,5.8974,169.58,169.55,7.07779304]
[1746809681359,22.72424056,169.6,169.55,1.17959304]
[1746809681957,5.8979,169.56,169.55,1.17959304]
[1746809682159,22.72424056,169.6,169.55,1.17959304]
[1746809682660,5.897,169.59,169.55,1.17959304]
[1746809682966,5.8969,169.59,169.56,5.8977]
[1746809683161,2.0112,169.65,169.57,1.17945391]
[1746809683358,24.73544056,169.65,169.57,1.17945391]
[1746809683559,5.8968,169.6,169.57,7.07695391]
[1746809684264,15.98743898,169.65,169.57,1.17945391]
[1746809684655,15.98743898,169.65,169.57,7.07675391]
[1746809685061,15.98743898,169.65,169.57,1.17945391]
[1746809685261,5.8972,169.58,169.57,1.17945391]
[1746809685561,13.97623898,169.61,169.55,1.17959304]
[1746809685765,5.8979,169.56,169.55,1.17959304]
[1746809685962,31.71623898,169.61,169.47,3.9062]
[1746809686162,31.71623898,169.61,169.48,1.18008024]
[1746809686867,5.8993,169.52,169.49,5.9002]
[1746809687064,31.71623898,169.61,169.48,1.18008024]
[1746809687364,1.05129041,169.6,169.48,1.18008024]
[1746809687666,5.8988,169.54,169.48,1.18008024]
[1746809688054,5.8983,169.55,169.52,5.8992]
[1746809688363,17.74,169.63,169.48,1.18008024]
[1746809688559,17.74,169.63,169.51,5.8994]
[1746809688560,22.72798449,169.59,169.51,5.8994]
[1746809689160,40.46798449,169.59,169.48,1.18008024]
[1746809689463,22.72798449,169.55,169.48,1.18008024]
[1746809690866,5.9003,169.5,169.48,1.18008024]
[1746809692968,5.9003,169.49,169.48,1.18008024]
[1746809693268,22.72798449,169.55,169.48,7.08068024]
[1746809693464,5.8999,169.51,169.48,7.08068024]
[1746809693668,22.72798449,169.55,169.48,1.18008024]
[1746809694071,1.926,169.57,169.48,1.18008024]
[1746809694569,5.8989,169.53,169.48,1.18008024]
[1746809694770,5.8989,169.53,169.51,5.8996]
[1746809695070,5.8989,169.53,169.48,1.18008024]
[1746809695263,1.926,169.57,169.48,1.18008024]
[1746809695873,5.9002,169.5,169.48,1.18008024]
[1746809696473,5.8998,169.51,169.48,7.08068024]
[1746809696673,22.72798449,169.56,169.48,1.18008024]
[1746809697173,5.9001,169.5,169.48,1.18008024]
[1746809697370,22.72798449,169.56,169.48,1.18008024]
[1746809697672,5.8999,169.51,169.48,7.08048024]
[1746809699468,27.8,169.53,169.48,1.18008024]
[1746809700074,5.9003,169.5,169.48,1.18008024]
[1746809700373,27.8,169.53,169.48,1.18008024]
[1746809701074,27.8,169.53,169.51,5.8993]
[1746809701268,27.8,169.53,169.48,1.18008024]
[1746809701672,27.8,169.53,169.52,5.8993]
[1746809701872,27.72,169.55,169.48,1.18008024]
[1746809702273,27.72,169.55,169.53,5.8988]
[1746809702667,5.8981,169.56,169.53,5.8988]
[1746809702873,55.54,169.57,169.54,5.8985]
[1746809703070,55.54,169.57,169.49,31.5489]
[1746809703273,27.8,169.57,169.56,5.8979]
[1746809703576,27.8,169.57,169.5,1.179941]
[1746809703772,27.8,169.57,169.51,27.8]
[1746809703973,33.6977,169.57,169.54,5.8984]
[1746809704173,27.8,169.57,169.51,27.8]
[1746809704378,27.8,169.57,169.56,5.8979]
[1746809704576,55.54,169.63,169.53,27.74]
[1746809704770,55.54,169.63,169.54,1.17966261]
[1746809704968,61.4355,169.63,169.6,5.8962]
[1746809705166,27.8,169.63,169.55,29.6806]
[1746809705371,27.8,169.63,169.56,1.17952347]
[1746809705571,33.6954,169.63,169.6,5.8963]
[1746809705779,33.6954,169.63,169.56,4.98842347]
[1746809706179,27.8,169.63,169.56,4.98842347]
[1746809706376,565.36,169.67,169.57,27.72]
[1746809706578,55.52,169.67,169.62,5.8955]
[1746809706776,5.8951,169.64,169.59,27.8]
[1746809707479,5.8949,169.65,169.59,27.8]
[1746809708383,55.52,169.67,169.59,28.97931481]
[1746809708583,78.24798449,169.67,169.59,1.17931481]
[1746809709777,69.49247425,169.67,169.59,1.17931481]
[1746809709980,5.8965,169.6,169.59,1.17931481]
[1746809710884,5.898,169.56,169.52,1.8842]
[1746809711177,27.66,169.59,169.52,1.8842]
[1746809711777,27.66,169.59,169.55,5.898]
[1746809712080,27.66,169.59,169.52,1.8842]
[1746809713284,33.5569,169.59,169.52,1.8842]
[1746809713473,27.66,169.59,169.52,1.8842]
[1746809714284,55.46,169.59,169.51,27.66]
[1746809714485,55.46,169.59,169.52,5.8992]
[1746809714783,55.46,169.59,169.5,27.8]
[1746809715185,5.8978,169.57,169.54,5.8986]
[1746809715783,5.8979,169.56,169.54,5.8986]
[1746809716085,55.46,169.59,169.54,5.8986]
[1746809716585,55.46,169.59,169.47,61.1413]
[1746809716885,13.97247425,169.57,169.47,55.44]
[1746809717083,13.97247425,169.57,169.48,5.9006]
[1746809717279,73.2,169.59,169.48,5.9006]
[1746809717486,73.2,169.59,169.47,27.78]
[1746809717787,13.97247425,169.56,169.47,27.78]
[1746809717986,55.46,169.55,169.45,1.18028917]
[1746809718187,5.9004,169.49,169.46,5.9012]
[1746809718494,27.66,169.51,169.45,1.18028917]
[1746809718976,55.46,169.55,169.46,27.8]
[1746809719177,5.8988,169.54,169.5,5.8997]
[1746809719394,55.46,169.55,169.5,5.8997]
[1746809719885,55.46,169.55,169.46,27.8]
[1746809719886,5.8987,169.54,169.46,27.8]
[1746809720588,5.8987,169.54,169.51,5.8995]
[1746809720887,5.8987,169.54,169.46,27.8]
[1746809721185,5.8987,169.54,169.5,5.8997]
[1746809721390,5.8989,169.53,169.46,27.8]
[1746809721689,5.8989,169.53,169.49,5.9]
[1746809721879,27.66,169.56,169.46,27.8]
[1746809722187,27.66,169.56,169.49,5.9003]
[1746809722391,5.8991,169.53,169.49,5.9003]
[1746809722689,5.8991,169.53,169.49,5.9001]
[1746809723087,5.8994,169.52,169.49,5.9001]
[1746809723286,27.66,169.56,169.48,5.9005]
[1746809723489,27.66,169.56,169.45,2.18028917]
[1746809724290,1.05164144,169.55,169.45,2.18028917]
[1746809724494,1.05164144,169.55,169.47,5.9009]
[1746809724685,5.9002,169.5,169.47,5.9009]
[1746809724885,5.9002,169.5,169.48,3.52]
[1746809725091,55.42,169.52,169.48,9.4206]
[1746809725293,5.8998,169.51,169.48,3.52]
[1746809726093,5.9,169.5,169.48,3.52]
[1746809726294,55.42,169.52,169.48,9.4206]
[1746809726593,55.42,169.52,169.48,3.52]
[1746809727194,5.9002,169.5,169.48,3.52]
[1746809728897,5.9003,169.49,169.48,3.52]
[1746809731201,5.9,169.5,169.48,3.52]
[1746809732191,27.66,169.52,169.48,3.52]
[1746809732702,33.5596,169.52,169.49,5.9002]
[1746809733301,33.5596,169.52,169.5,5.8999]
[1746809733501,27.66,169.52,169.5,5.8999]
[1746809733707,27.66,169.52,169.48,3.52]
[1746809733904,27.66,169.52,169.5,5.8998]
[1746809734104,5.899,169.53,169.5,5.8998]
[1746809735405,55.28,169.56,169.48,3.52]
[1746809735905,5.8991,169.53,169.5,5.8999]
[1746809737008,5.8993,169.52,169.49,5.9001]
[1746809737206,55.28,169.56,169.48,3.52]
[1746809737600,5.8992,169.53,169.49,5.9001]
[1746809737801,5.8992,169.53,169.48,3.52]
[1746809737802,55.28,169.56,169.48,3.52]
[1746809738102,5.8989,169.53,169.5,5.8996]
[1746809738298,55.28,169.56,169.48,3.52]
[1746809738806,5.9002,169.5,169.48,3.52]
[1746809740210,5.8997,169.51,169.48,9.4206]
[1746809740411,55.06,169.52,169.48,3.52]
[1746809740710,5.8986,169.54,169.51,5.8994]
[1746809740911,27.56,169.55,169.48,3.52]
[1746809741210,33.4585,169.55,169.52,5.8992]
[1746809741399,27.56,169.55,169.48,3.52]
[1746809741811,27.56,169.55,169.5,5.8999]
[1746809742206,27.56,169.55,169.48,3.52]
[1746809742407,5.8986,169.54,169.48,3.52]
[1746809742607,27.52,169.57,169.48,3.52]
[1746809742806,27.52,169.57,169.49,3.7783]
[1746809743010,5.8981,169.56,169.49,5.6479]
[1746809743314,27.52,169.57,169.49,5.6479]
[1746809743514,5.8983,169.55,169.52,5.8992]
[1746809743914,27.52,169.57,169.49,5.6479]
[1746809744114,5.898,169.56,169.53,5.8987]
[1746809744810,5.898,169.56,169.54,5.8986]
[1746809745215,5.898,169.56,169.49,5.6479]
[1746809745409,5.898,169.56,169.53,5.8988]
[1746809746215,5.8983,169.55,169.53,5.8988]
[1746809746415,27.52,169.57,169.53,5.8988]
[1746809746912,5.898,169.56,169.53,5.8988]
[1746809747106,27.52,169.57,169.5,27.48]
[1746809747306,27.44,169.56,169.49,3.7783]
[1746809747505,27.44,169.56,169.49,1.9404]
[1746809747710,27.44,169.56,169.48,3.52]
[1746809748407,27.44,169.56,169.48,9.4206]
[1746809748919,5.9,169.5,169.48,3.52]
[1746809749216,27.4,169.52,169.48,3.52]
[1746809749917,5.8993,169.52,169.49,5.9001]
[1746809750117,54.94,169.55,169.45,2.18028917]
[1746809751121,511.8086,169.6,169.45,2.18028917]
[1746809751418,54.96,169.58,169.45,2.18028917]
[1746809751608,60.8574,169.58,169.55,5.8979]
[1746809751808,33.4174,169.58,169.55,5.8979]
[1746809752315,27.52,169.58,169.51,29.3125]
[1746809752813,5.8981,169.56,169.53,5.8987]
[1746809753419,5.8982,169.55,169.52,5.8991]
[1746809753618,27.44,169.57,169.5,27.52]
[1746809753820,27.44,169.57,169.47,31.2322]
[1746809754522,5.8986,169.54,169.5,5.8997]
[1746809754723,5.8986,169.54,169.47,31.2322]
[1746809755217,5.8986,169.54,169.51,5.8996]
[1746809755421,5.899,169.53,169.47,31.2322]
[1746809755617,27.44,169.57,169.49,5.9001]
[1746809755818,27.44,169.57,169.47,31.2322]
[1746809756219,27.44,169.57,169.46,27.52]
[1746809756421,27.44,169.57,169.47,5.9008]
[1746809756816,5.9,169.5,169.47,5.9008]
[1746809757018,54.94,169.52,169.46,5.9012]
[1746809757921,5.9006,169.49,169.46,5.9012]
[1746809758121,54.94,169.52,169.45,8.08188917]
[1746809758821,54.94,169.52,169.45,2.18028917]
[1746809759017,54.94,169.51,169.45,2.18028917]
[1746809759218,1.9496,169.53,169.45,2.18028917]
[1746809759521,54.94,169.56,169.45,2.18028917]
[1746809759720,54.94,169.56,169.46,27.52]
[1746809760124,27.52,169.56,169.46,29.4129]
[1746809760322,27.52,169.56,169.53,5.8987]
[1746809760518,27.52,169.56,169.5,27.46]
[1746809761419,27.52,169.56,169.46,1.8929]
[1746809761618,27.52,169.56,169.46,56.8329]
[1746809761824,27.42,169.55,169.46,56.8329]
[1746809762122,5.8991,169.53,169.46,56.8329]
[1746809762322,27.42,169.55,169.46,56.8329]
[1746809762525,27.42,169.55,169.48,5.9004]
[1746809762920,27.42,169.55,169.46,29.4129]
[1746809763220,29.3748,169.55,169.46,29.4129]
[1746809764426,29.3748,169.55,169.47,5.9009]
[1746809764622,29.3748,169.55,169.46,27.52]
[1746809765123,29.3748,169.55,169.47,5.9008]
[1746809765629,29.3748,169.55,169.46,33.4212]